bitfinex/quotes_ETHUSD_20220311
["timestamp","ask_amount","ask_price","bid_price","bid_amount"]
[1647017289973,3.54624995,2560.3,2559.5,0.97656]
[1647017290178,0.05411204,2560.2,2559.4,0.5]
[1647017290374,12.94087204,2560.2,2559.4,0.5]
[1647017290578,0.04846242,2560.1,2559.4,0.5]
[1647017290882,0.04846242,2560.1,2559.9,0.00106122]
[1647017291279,0.9767645,2560.1,2559.9,0.00106122]
[1647017291474,1.2767645,2560.1,2559.5,0.88148678]
[1647017291675,1.27678,2560.3,2559.5,0.88148678]
[1647017291876,0.3,2560.2,2559.9,0.00353051]
[1647017292275,1.27678,2560.3,2559.9,0.00353051]
[1647017292476,0.9764796,2560.1,2559.9,0.00353051]
[1647017292679,0.9764796,2560.1,2559.5,0.88148678]
[1647017292928,0.3,2560.1,2559.5,0.88148678]
[1647017293114,3.8,2560.1,2560.0,0.00353037]
[1647017293916,3.8,2560.1,2559.5,0.88148678]
[1647017294119,0.9767437,2559.6,2559.5,0.88148678]
[1647017295321,0.9767437,2559.6,2559.4,0.30352035]
[1647017295722,0.9767437,2559.6,2559.4,0.00352035]
[1647017296324,0.9767727,2559.3,2559.1,0.68299871]
[1647017296524,0.9767727,2559.3,2559.1,1.69215284]
[1647017296761,0.97679,2559.4,2558.9,0.61421309]
[1647017297558,0.97679,2559.4,2558.9,0.01408415]
[1647017297761,0.9768913,2559.1,2559.0,0.00106099]
[1647017298661,0.9768913,2559.1,2558.7,0.67375993]
[1647017298861,0.9768568,2559.0,2558.7,0.67375993]
[1647017299060,0.9768568,2559.0,2558.9,0.00353226]
[1647017299264,0.97691,2559.2,2558.9,0.00353226]
[1647017299965,0.97691,2559.2,2558.8,0.93360813]
[1647017300165,0.9768008,2559.1,2558.9,0.00353226]
[1647017300622,1.2768008,2559.1,2558.9,0.00353226]
[1647017300820,3.2305736,2559.1,2558.9,0.00353226]
[1647017301118,3.2305736,2559.1,2558.8,0.93360813]
[1647017301520,3.2305736,2559.1,2558.9,0.00353233]
[1647017302318,3.2305736,2559.1,2558.8,1.91045813]
[1647017302518,3.2305736,2559.1,2558.9,0.00370339]
[1647017303116,0.97691,2559.2,2558.9,0.00370339]
[1647017303117,1.9536663,2559.2,2558.9,0.00370339]
[1647017303518,1.9536663,2559.2,2558.7,0.59840564]
[1647017303716,0.04921919,2559.4,2559.0,0.97676]
[1647017303717,0.97662,2559.4,2559.0,0.97676]
[1647017303918,1.131,2559.7,2559.1,0.0861246]
[1647017304164,1.131,2559.7,2558.9,0.00370336]
[1647017304363,1.131,2559.7,2559.3,0.90253838]
[1647017304563,0.88097154,2559.9,2559.3,0.90253838]
[1647017305162,0.9766697,2559.4,2559.3,0.90253838]
[1647017305363,0.9766697,2559.4,2559.2,0.30370325]
[1647017305768,0.9766697,2559.4,2559.2,0.98040325]
[1647017305972,1.95349,2559.7,2559.2,0.9767]
[1647017306169,1.95349,2559.7,2559.2,0.98017132]
[1647017306368,0.3,2559.6,2559.2,0.98017132]
[1647017306568,2.2533776,2559.6,2559.2,0.98017132]
[1647017306768,1.27675,2559.6,2559.5,1.11184785]
[1647017306968,0.3,2559.6,2559.5,1.11184785]
[1647017307369,1.95349,2559.7,2559.5,1.11184785]
[1647017307572,0.04558478,2560.2,2559.5,1.11184785]
[1647017307772,0.0542784,2560.5,2559.6,0.07769009]
[1647017308012,1.2256,2560.6,2559.6,0.07769009]
[1647017308215,1.2256,2560.6,2559.8,0.97637]
[1647017308414,0.93360936,2560.6,2559.9,0.08328513]
[1647017308814,0.93360936,2560.6,2559.9,0.08675543]
[1647017309014,0.9764444,2560.2,2559.9,0.08675543]
[1647017309614,0.9764444,2560.2,2559.9,0.08328513]
[1647017309812,0.9764444,2560.2,2559.9,0.08681831]
[1647017310416,0.9764444,2560.2,2559.9,1.06326831]
[1647017310714,1.2764444,2560.2,2559.9,0.08681831]
[1647017311758,3.2294856,2560.2,2559.9,0.00353318]
[1647017311959,0.9764915,2560.1,2559.8,0.97649]
[1647017312160,0.975691,2560.1,2559.8,0.97649]
[1647017312358,0.975691,2560.1,2559.9,0.00353318]
[1647017313164,0.975691,2560.1,2559.8,0.97649]
[1647017313362,0.975691,2560.1,2559.9,0.0035191]
[1647017313666,3.2295312,2560.2,2560.0,0.97642]
[1647017313667,2.252904,2560.2,2560.0,0.97642]
[1647017314666,2.252904,2560.2,2560.0,0.97993896]
[1647017315267,1.952904,2560.2,2560.0,0.97993896]
[1647017315513,1.952904,2560.2,2560.0,0.97642]
[1647017315912,1.952904,2560.2,2560.0,0.97993896]
[1647017316713,1.952904,2560.2,2560.0,0.97642]
[1647017317113,1.952904,2560.2,2560.0,0.97994215]
[1647017318013,1.952904,2560.2,2560.0,0.97642]
[1647017318212,1.952904,2560.2,2560.0,0.97994215]
[1647017318415,2.00675436,2560.2,2560.0,0.97994215]
[1647017318612,2.00675436,2560.2,2560.0,0.00352215]
[1647017318613,2.30675436,2560.2,2560.0,0.00352215]
[1647017318821,2.252904,2560.2,2560.0,0.00352215]
[1647017319161,2.252904,2560.2,2559.3,9.30501855]
[1647017319362,2.252904,2560.2,2559.3,0.06861855]
[1647017319663,0.9765922,2559.6,2559.3,0.06861855]
[1647017319861,0.9765922,2559.6,2559.3,3.13148692]
[1647017320062,0.97662,2559.7,2559.3,3.13148692]
[1647017320262,0.97662,2559.7,2559.3,4.13148692]
[1647017320467,0.97662,2559.7,2559.3,2.02176855]
[1647017320668,0.97662,2559.7,2559.3,3.02176855]
[1647017320868,0.97662,2559.7,2559.3,2.02529087]
[1647017321066,0.97662,2559.7,2559.3,3.02529087]
[1647017321268,1.9531417,2559.7,2559.3,2.02529087]
[1647017321472,1.9531417,2559.7,2559.3,3.02529087]
[1647017321473,0.97662,2559.7,2559.3,3.02529087]
[1647017321666,0.97662,2559.7,2559.3,3.02176855]
[1647017321868,0.97662,2559.7,2559.4,0.00352225]
[1647017322267,0.97662,2559.7,2559.4,0.98009225]
[1647017322666,1.9531369,2559.7,2559.4,0.98009225]
[1647017322923,1.9531369,2559.7,2559.4,0.97657]
[1647017323109,1.9531369,2559.7,2559.4,0.98009218]
[1647017323911,1.9531369,2559.7,2559.4,0.97657]
[1647017324313,3.9064144,2559.8,2559.4,0.98009235]
[1647017324314,0.97648,2559.8,2559.4,0.98009235]
[1647017324511,0.9764615,2559.9,2559.4,0.98009235]
[1647017324911,1.9529626,2560.1,2559.4,0.98009235]
[1647017325111,1.9529626,2560.1,2559.4,0.97657]
[1647017325313,0.9765403,2559.6,2559.4,0.97657]
[1647017325516,0.9765403,2559.6,2559.5,0.00352221]
[1647017326316,0.9765403,2559.6,2559.4,0.97657]
[1647017326764,0.9765403,2559.6,2559.4,0.98009235]
[1647017327059,0.9765403,2559.6,2559.4,0.97884874]
[1647017327460,3.9062359,2559.9,2559.5,3.5]
[1647017327461,1.95311,2559.9,2559.5,3.5]
[1647017327660,8.8123875,2561.0,2559.5,3.5]
[1647017327661,1.9527385,2560.4,2559.6,1.04519158]
[1647017327861,1.9527385,2560.4,2559.7,3.58272682]
[1647017328060,1.9527385,2560.4,2559.8,0.0870691]
[1647017328462,1.13848293,2560.2,2559.8,0.0870691]
[1647017328663,1.13848293,2560.2,2559.6,0.36877033]
[1647017328865,1.13848293,2560.2,2559.8,0.97635]
[1647017328866,0.9764244,2560.1,2559.8,0.97635]
[1647017329062,1.2764244,2560.1,2560.0,0.00352155]
[1647017329962,0.04440156,2560.0,2559.6,0.97649]
[1647017330162,0.9765363,2559.7,2559.4,0.58064137]
[1647017331217,1.2765363,2559.7,2559.4,0.58064137]
[1647017331418,1.2765363,2559.7,2559.4,1.56072369]
[1647017331921,0.97655,2559.9,2559.4,1.56072369]
[1647017332119,1.9530311,2559.9,2559.4,1.56072369]
[1647017332519,1.9530311,2559.9,2559.4,1.55720137]
[1647017333019,1.9530311,2559.9,2559.6,0.97646]
[1647017333818,1.9530311,2559.9,2559.6,0.97998204]
[1647017334019,0.97655,2559.9,2559.6,0.97998204]
[1647017334864,0.97655,2559.9,2559.6,0.97646]
[1647017335064,0.97655,2559.9,2559.6,0.97998204]
[1647017336069,0.97655,2559.9,2559.6,0.97646]
[1647017336270,1.27655,2559.9,2559.6,0.97998204]
[1647017336470,0.04440156,2560.0,2559.6,0.97998204]
[1647017337076,1.43848293,2560.2,2559.6,0.97998204]
[1647017337272,1.43848293,2560.2,2559.6,0.97646]
[1647017337472,0.3,2560.2,2559.8,0.97639]
[1647017337672,0.9763479,2560.2,2559.9,3.5]
[1647017337929,9.614,2560.9,2559.9,4.57633242]
[1647017338117,0.04983189,2560.9,2560.0,0.07777277]
[1647017338516,0.04983189,2560.9,2560.5,1.0644403]
[1647017338716,0.9760903,2560.9,2560.6,0.97609]
[1647017339914,0.9760903,2560.9,2560.6,0.97961067]
[1647017340115,1.2760903,2560.9,2560.6,0.97961067]
[1647017340918,1.2760903,2560.9,2560.6,0.97609]
[1647017341118,1.2760903,2560.9,2560.6,0.97961067]
[1647017341525,0.9761498,2560.8,2560.6,0.00352067]
[1647017342069,0.9761498,2560.8,2560.2,1.95237]
[1647017342070,0.04758521,2560.7,2560.2,1.95237]
[1647017342272,0.04758521,2560.7,2559.8,3.74193097]
[1647017342469,0.04758521,2560.7,2560.6,0.00352073]
[1647017343273,1.11169594,2560.5,2559.9,0.97641]
[1647017343473,1.9527,2560.7,2560.5,0.0035208]
[1647017343676,1.9526522,2560.7,2560.5,0.0035208]
[1647017344474,1.08641689,2560.5,2560.0,1.95257]
[1647017344674,0.9763118,2560.4,2560.0,1.95257]
[1647017345518,0.9763118,2560.4,2560.2,0.9763]
[1647017346924,1.9525844,2560.8,2560.2,0.9763]
[1647017346925,0.9761864,2560.8,2560.2,0.9763]
[1647017347221,0.9761864,2560.8,2560.2,0.97983009]
[1647017347622,0.9761864,2560.8,2560.4,0.97616]
[1647017347921,1.95651081,2560.8,2560.4,0.97616]
[1647017348321,1.95651081,2560.8,2560.5,0.00352967]
[1647017348526,3.90903241,2560.8,2560.5,0.00352967]
[1647017349163,3.90903241,2560.8,2560.3,3.04036594]
[1647017349164,3.90903241,2560.8,2560.3,2.04036594]
[1647017349367,2.93284601,2560.8,2560.3,3.04036594]
[1647017349564,2.93284601,2560.8,2560.3,2.04036594]
[1647017349565,0.9762993,2560.5,2560.3,2.04036594]
[1647017349764,0.9762993,2560.5,2560.3,3.04036594]
[1647017349967,0.9762993,2560.5,2560.3,2.04036594]
[1647017350164,0.9762993,2560.5,2560.3,3.04036594]
[1647017350469,0.9762993,2560.5,2560.3,2.04036594]
[1647017350870,1.03151081,2560.4,2560.3,2.04388511]
[1647017351070,4.53151081,2560.4,2560.3,0.00351917]
[1647017351270,5.50786861,2560.4,2560.3,0.00351917]
[1647017351470,2.00786861,2560.4,2560.3,0.00351917]
[1647017351770,2.00786861,2560.4,2559.9,2.02824832]
[1647017351968,0.9763578,2560.4,2560.2,0.00351924]
[1647017352168,2.92907,2560.6,2560.2,0.00351924]
[1647017352169,1.9525487,2560.6,2560.2,0.00351924]
[1647017352369,0.97624,2560.7,2560.2,0.97981924]
[1647017353216,0.97624,2560.7,2560.5,0.97618]
[1647017353418,0.87861617,2560.7,2560.5,0.97618]
[1647017354416,0.87861617,2560.7,2560.5,0.97970132]
[1647017354717,0.87861617,2560.7,2560.5,0.00352132]
[1647017355318,0.87861617,2560.7,2560.1,1.95249]
[1647017355520,0.87861617,2560.7,2560.5,0.00352132]
[1647017355521,2.08894351,2560.6,2560.5,0.00352132]
[1647017355721,0.9762466,2560.6,2560.5,0.00352132]
[1647017356422,0.9762466,2560.6,2560.1,3.83613423]
[1647017356663,0.9762466,2560.6,2560.4,0.00352139]
[1647017356664,0.9762924,2560.5,2560.4,0.00352139]
[1647017356865,1.02463884,2560.5,2560.4,0.00352139]
[1647017357465,0.9762924,2560.5,2560.4,0.00352139]
[1647017357668,0.05430142,2560.6,2560.2,0.97629]
[1647017358067,0.05430142,2560.6,2560.3,0.00352098]
[1647017358470,0.05430142,2560.6,2560.3,0.88995335]
[1647017358869,0.05430142,2560.6,2560.3,0.88643237]
[1647017359071,0.9762675,2560.5,2560.3,0.88995335]
[1647017359471,0.9762675,2560.5,2560.4,0.97621]
[1647017359979,0.9762675,2560.5,2560.3,0.00352098]
[1647017360276,0.9763283,2560.4,2560.3,0.00352098]
[1647017360923,0.05430142,2560.6,2560.3,0.00352098]
[1647017361325,0.05430142,2560.6,2560.1,3.87224098]
[1647017361523,0.89272335,2560.5,2560.2,0.00352124]
[1647017361722,1.86901995,2560.5,2560.2,0.00352124]
[1647017361923,1.86901995,2560.5,2560.2,0.97982124]
[1647017362624,0.89272335,2560.5,2560.2,0.9763]
[1647017362827,0.89272335,2560.5,2560.2,0.97982124]
[1647017363224,0.9763286,2560.4,2560.2,0.97982124]
[1647017363625,0.9763286,2560.4,2560.0,1.95254]
[1647017363824,1.86907335,2560.5,2559.9,1.97641]
[1647017364024,0.04350261,2560.4,2560.2,0.00352131]
[1647017364671,1.01994111,2560.4,2560.2,0.00352131]
[1647017364870,1.01994111,2560.4,2559.8,3.80239421]
[1647017364871,0.04589625,2560.3,2559.8,3.80239421]
[1647017365074,0.04589625,2560.3,2560.2,0.00352128]
[1647017366074,0.04589625,2560.3,2559.9,0.97641]
[1647017366272,0.9764245,2560.1,2559.9,0.97641]
[1647017367475,1.2764245,2560.1,2559.8,2.95275]
[1647017367677,1.2764245,2560.1,2559.9,0.00352169]
[1647017368124,1.21671994,2560.1,2559.9,0.00352169]
[1647017368520,1.21671994,2560.1,2559.8,2.95275]
[1647017368728,1.21671994,2560.1,2559.9,0.0035305]
[1647017369626,1.21671994,2560.1,2559.8,1.95275]
[1647017369821,1.21671994,2560.1,2559.8,3.86883218]
[1647017370023,1.21671994,2560.1,2559.9,0.0035305]
[1647017370824,0.3,2560.1,2559.9,0.97637]
[1647017371026,0.35283296,2560.1,2559.9,0.97637]
[1647017371225,0.35283296,2560.1,2559.9,0.9799005]
[1647017372069,0.35283296,2560.1,2559.9,0.97637]
[1647017372271,0.35283296,2560.1,2559.9,0.97988972]
[1647017372971,0.35283296,2560.1,2559.9,0.00351972]
[1647017374373,0.35283296,2560.1,2559.8,2.79954123]
[1647017374872,0.35283296,2560.1,2559.9,0.00351972]
[1647017377046,2.13527546,2560.1,2559.9,0.00352214]
[1647017378046,2.13527546,2560.1,2559.8,1.95275]
[1647017378446,2.13527546,2560.1,2559.9,0.00352214]
[1647017378645,1.32927676,2560.1,2559.9,0.00352214]
[1647017378846,1.02927676,2560.1,2559.9,0.00352214]
[1647017379045,0.9763377,2560.3,2559.9,0.97986214]
[1647017379275,1.2763377,2560.3,2559.9,0.97634]
[1647017379677,1.2763377,2560.3,2559.9,0.97986214]
[1647017379880,1.2763377,2560.3,2560.0,1.13104134]
[1647017380080,1.2763377,2560.3,2560.0,2.10739134]
[1647017380679,1.2763377,2560.3,2560.0,2.11091273]
[1647017381282,0.9763759,2560.2,2560.0,0.97987139]
[1647017381484,0.9763759,2560.2,2560.0,0.00352139]
[1647017381682,0.9763759,2560.2,2559.9,0.97639]
[1647017381886,0.3,2560.3,2559.9,0.97639]
[1647017382083,0.05055647,2560.2,2560.0,0.00352139]
[1647017382484,0.90285613,2560.1,2560.0,0.00352139]
[1647017382914,0.90285613,2560.1,2559.9,0.97639]
[1647017383115,0.90285613,2560.1,2560.0,0.00352146]
[1647017383320,1.87928183,2560.1,2560.0,0.00352146]
[1647017383726,13.78928183,2560.1,2560.0,0.00352146]
[1647017384121,12.81285613,2560.1,2559.6,1.0]
[1647017384321,1.04322911,2559.7,2559.6,1.0]
[1647017387002,0.9766289,2559.8,2559.6,1.0]
[1647017388003,0.9766289,2559.8,2559.6,1.00418265]
[1647017388304,2.0558105,2559.8,2559.6,1.00418265]
[1647017388504,2.05463336,2559.8,2559.6,1.00418265]
[1647017388904,2.05463336,2559.8,2559.6,1.0]
[1647017389104,2.05463336,2559.8,2559.6,1.00418265]
[1647017390003,2.05463336,2559.8,2559.6,1.0]
[1647017390431,2.05463336,2559.8,2559.6,1.00418265]
[1647017391238,2.05463336,2559.8,2559.6,1.0]
[1647017391630,2.05463336,2559.8,2559.6,1.00418265]
[1647017392330,1.27545176,2559.8,2559.6,1.00418265]
[1647017392532,1.27545176,2559.8,2559.6,1.0]
[1647017392828,1.27545176,2559.8,2559.6,1.00388753]
[1647017393630,1.27545176,2559.8,2559.6,1.0]
[1647017393834,0.04791799,2559.7,2559.6,1.0]
[1647017394031,0.04791799,2559.7,2559.6,1.00388753]
[1647017394888,0.04791799,2559.7,2559.6,1.0]
[1647017395087,0.04791799,2559.7,2559.5,0.0038876]
[1647017395398,0.9767661,2559.6,2559.5,0.0038876]
[1647017395595,1.2767661,2559.6,2559.5,0.0038876]
[1647017395996,1.2767661,2559.6,2559.1,0.25]
[1647017396196,0.3,2559.6,2559.1,0.25]
[1647017396401,1.2767413,2559.6,2559.4,0.00344102]
[1647017397296,1.2767413,2559.6,2559.4,0.82128799]
[1647017397498,1.2766918,2559.6,2559.4,0.82472908]
[1647017397696,1.2766918,2559.6,2559.4,0.00344109]
[1647017398540,1.2766918,2559.6,2558.9,2.17205]
[1647017398747,1.9535065,2559.4,2558.9,2.18581679]
[1647017398952,0.3,2559.4,2558.9,1.01376679]
[1647017399146,0.3,2559.6,2558.9,1.01376679]
[1647017399147,15.17236358,2559.6,2558.9,1.01376679]
[1647017399347,16.14929358,2559.6,2558.9,1.01376679]
[1647017399550,18.10313358,2559.6,2558.9,1.0]
[1647017399748,18.40313358,2559.6,2558.9,1.0]
[1647017399948,1.9536615,2559.2,2559.1,0.00357525]
[1647017400350,2.2536615,2559.2,2559.1,0.00357525]
[1647017400560,2.2536615,2559.2,2558.8,1.41678928]
[1647017400561,2.2536615,2559.2,2558.7,0.01430313]
[1647017400753,2.2536615,2559.2,2558.3,0.4453]
[1647017400754,14.1636615,2559.2,2558.3,0.25]
[1647017400950,11.91,2559.0,2557.7,10.3927]
[1647017401151,13.371,2559.0,2557.7,10.3927]
[1647017401353,13.371,2559.0,2557.8,0.1954]
[1647017401354,0.9771411,2558.3,2557.8,0.1954]
[1647017401556,0.9771411,2558.3,2557.6,2.4176]
[1647017401557,0.9771411,2558.3,2558.0,0.86047234]
[1647017401785,0.3,2558.2,2558.0,0.86047234]
[1647017402183,0.3,2558.2,2557.6,0.1953]
[1647017402383,0.3,2558.2,2557.6,0.27739135]
[1647017402586,2.2545241,2558.2,2557.6,0.27739135]
[1647017403587,2.2545241,2558.2,2557.8,0.00418751]
[1647017404092,0.9772545,2558.1,2557.8,0.00418751]
[1647017404287,0.9772545,2558.1,2558.0,1.10683888]
[1647017405087,0.9772545,2558.1,2557.9,0.30418746]
[1647017405286,0.9772545,2558.1,2557.9,0.00418746]
[1647017405733,0.9772545,2558.1,2557.6,0.1953]
[1647017405935,0.9772545,2558.1,2557.9,0.00418746]
[1647017406936,0.9772545,2558.1,2557.8,1.14609255]
[1647017407139,0.9772545,2558.1,2557.9,0.00418746]
[1647017408141,0.9772545,2558.1,2557.6,0.1953]
[1647017408342,0.9772545,2558.1,2557.9,0.00384251]
[1647017408555,3.5,2558.0,2557.9,4.251e-05]
[1647017408744,12.95598737,2557.8,2557.2,0.0454816]
[1647017408943,0.04324357,2557.6,2557.2,0.0454816]
[1647017409188,12.371,2557.5,2557.2,0.0454816]
[1647017409396,0.04738768,2557.4,2556.4,2.79357251]
[1647017409591,12.371,2557.3,2556.4,2.79357251]
[1647017409791,12.88802,2557.1,2556.1,0.07590936]
[1647017409995,0.05499483,2557.0,2556.5,0.04035806]
[1647017410191,0.05499483,2557.0,2556.2,0.04206333]
[1647017410391,0.05499483,2557.0,2556.1,0.04263176]
[1647017410592,0.90062757,2556.7,2556.2,0.98234407]
[1647017410792,1.20062757,2556.7,2556.2,0.98234407]
[1647017410994,1.20062757,2556.7,2556.3,0.04149491]
[1647017411600,0.04760066,2556.6,2556.3,0.04149491]
[1647017411793,0.04760066,2556.6,2556.2,0.04206333]
[1647017411998,0.04760066,2556.6,2556.4,0.00418983]
[1647017412795,13.76712757,2556.7,2556.4,0.00418983]
[1647017412796,0.05264738,2556.5,2556.4,0.00418983]
[1647017413032,0.05264738,2556.5,2555.9,0.99419286]
[1647017413232,0.05264738,2556.5,2556.4,0.04511632]
[1647017413433,0.05264738,2556.5,2556.4,0.00418983]
[1647017413636,3.2340462,2556.7,2556.4,0.04511632]
[1647017413637,2.9340462,2556.7,2556.4,0.04511632]
[1647017414232,2.9340462,2556.7,2556.4,0.04092649]
[1647017414433,2.9340462,2556.7,2556.4,0.00418981]
[1647017414838,0.03174828,2556.6,2556.4,0.00418981]
[1647017415437,0.03174828,2556.6,2556.3,1.0955066]
[1647017415639,0.03174828,2556.6,2556.4,0.01163718]
[1647017416436,0.03174828,2556.6,2556.4,0.00757061]
[1647017416889,0.03174828,2556.6,2556.4,0.01130532]
[1647017417789,0.03174828,2556.6,2556.4,0.00757061]
[1647017417990,0.03174828,2556.6,2556.4,0.01130532]
[1647017418989,0.03174828,2556.6,2556.4,0.00757061]
[1647017419192,0.03174828,2556.6,2556.4,0.01130532]
[1647017420090,0.03174828,2556.6,2556.4,0.00757061]
[1647017420532,0.03174828,2556.6,2556.4,0.01093637]
[1647017420932,0.03174828,2556.6,2556.4,0.00336576]
[1647017421334,0.03174828,2556.6,2556.3,0.00742382]
[1647017421733,0.03174828,2556.6,2556.4,0.00336576]
[1647017422734,0.03174828,2556.6,2556.4,0.00673152]
[1647017422935,0.03174828,2556.6,2556.4,0.00336576]
[1647017423737,0.03174828,2556.6,2556.3,0.00742382]
[1647017423935,0.03174828,2556.6,2556.4,0.00344878]
[1647017424879,0.03174828,2556.6,2556.3,0.00742382]
[1647017425283,0.03174828,2556.6,2556.4,0.00344878]
[1647017426085,0.03174828,2556.6,2556.3,0.00742382]
[1647017426283,0.03174828,2556.6,2556.4,0.00344878]
[1647017427386,0.03174828,2556.6,2556.3,0.00742382]
[1647017427591,14.8440455,2557.3,2556.3,0.00742382]
[1647017427592,0.81690112,2557.6,2556.4,0.0034301]
[1647017427788,0.00395034,2557.8,2556.4,0.0034301]
[1647017427789,0.00395034,2557.8,2556.7,0.3]
[1647017428062,3.5,2557.3,2556.7,0.3]
[1647017428262,0.00395034,2557.8,2556.5,1.19393037]
[1647017428461,0.94530164,2557.4,2557.1,0.0448]
[1647017428760,12.90467916,2557.4,2557.1,0.0448]
[1647017428959,0.05512909,2557.3,2556.9,0.00103336]
[1647017429160,11.91,2557.2,2556.9,0.00103336]
[1647017429460,0.05288771,2557.1,2556.9,0.00103336]
[1647017429660,0.05288771,2557.1,2556.3,0.00742382]
[1647017429661,1.11053366,2557.0,2556.3,0.00742382]
[1647017429860,0.81793443,2556.5,2556.3,0.00742382]
[1647017430367,0.81793443,2556.5,2556.3,1.96290382]
[1647017430562,0.9778636,2556.7,2556.3,1.96290382]
[1647017430766,0.9778636,2556.7,2556.3,1.95548]
[1647017430963,2.0031011,2556.9,2556.3,1.95548]
[1647017431162,0.0473739,2556.9,2556.3,1.95927142]
[1647017431464,0.3473739,2556.9,2556.3,1.95927142]
[1647017431697,0.88969127,2556.5,2556.3,1.95927142]
[1647017431899,0.88969127,2556.5,2556.3,0.00379142]
[1647017432100,1.24163935,2556.5,2556.0,0.19393037]
[1647017432297,1.24163935,2556.5,2555.9,0.01516797]
[1647017432499,1.24163935,2556.5,2556.3,0.00379142]
[1647017433301,1.24163935,2556.5,2555.8,0.88061157]
[1647017433516,1.24163935,2556.5,2555.9,0.97797]
[1647017433703,1.24163935,2556.5,2556.3,0.00397419]
[1647017434302,0.1955,2556.9,2556.3,0.00397419]
[1647017434503,0.3,2556.7,2556.0,0.19393037]
[1647017434703,0.03261251,2556.6,2556.2,0.97787]
[1647017434903,0.03261251,2556.6,2556.3,0.0033326]
[1647017435104,0.03261251,2556.6,2556.3,0.9811626]
[1647017435303,0.03261251,2556.6,2556.3,1.97795303]
[1647017435542,0.03261251,2556.6,2556.3,1.98400252]
[1647017435740,0.03261251,2556.6,2556.4,0.9778]
[1647017435939,0.03261251,2556.6,2556.3,1.98066992]
[1647017436142,0.03261251,2556.6,2556.3,1.98400246]
[1647017436942,0.03261251,2556.6,2556.3,1.98066992]
[1647017437142,0.03261251,2556.6,2556.4,1.9555]
[1647017437342,0.03261251,2556.6,2556.4,2.2555]
[1647017438443,0.03261251,2556.6,2556.4,3.23672627]
[1647017439296,0.03261251,2556.6,2556.4,3.23327]
[1647017439497,0.05360235,2556.9,2556.4,3.23327]
[1647017439699,0.05360235,2556.9,2556.4,3.23672627]
[1647017439897,0.05360235,2556.9,2556.4,4.23672627]
[1647017440096,0.05360235,2556.9,2556.4,3.23672627]
[1647017440296,0.05360235,2556.9,2556.4,4.23672627]
[1647017440497,0.05360235,2556.9,2556.4,3.23327]
[1647017440701,0.05360235,2556.9,2556.4,4.23327]
[1647017440897,0.05360235,2556.9,2556.5,0.00345606]
[1647017441302,0.05360235,2556.9,2556.7,0.97930741]
[1647017441702,0.02395173,2557.0,2556.8,3.5]
[1647017441899,0.02395173,2557.0,2556.8,0.19393037]
[1647017442101,0.02395173,2557.0,2556.8,1.19393037]
[1647017442302,0.02395173,2557.0,2556.9,0.08016236]
[1647017444639,0.89405782,2557.3,2556.9,0.08016236]
[1647017444841,0.89405782,2557.3,2556.9,2.03542236]
[1647017445244,0.89405782,2557.3,2556.8,0.49735818]
[1647017445443,0.89405782,2557.3,2556.8,0.49393037]
[1647017445444,0.94280789,2557.3,2556.8,0.49393037]
[1647017445644,0.94280789,2557.3,2557.0,0.00343388]
[1647017446443,0.99647656,2557.4,2557.0,0.08608541]
[1647017446444,0.01884656,2557.4,2557.0,0.08608541]
[1647017446685,0.01884656,2557.4,2557.0,0.08265153]
[1647017447494,0.01884656,2557.4,2557.1,0.97741]
[1647017447690,0.01884656,2557.4,2557.1,2.93232]
[1647017447891,0.01884656,2557.4,2557.1,3.23232]
[1647017448091,0.01884656,2557.4,2557.1,3.25491]
[1647017448291,0.01884656,2557.4,2557.1,1.95491]
[1647017448494,0.01884656,2557.4,2557.2,0.97746]
[1647017449092,0.0279653,2557.9,2557.3,3.56844901]
[1647017449292,0.0279653,2557.9,2557.4,0.06826618]
[1647017449293,0.00419041,2557.8,2557.4,0.06826618]
[1647017449491,1.10820504,2557.8,2557.4,1.04560618]
[1647017449893,1.15809863,2557.8,2557.3,1.3]
[1647017450091,1.45390822,2557.8,2557.3,0.3]
[1647017450293,1.45390822,2557.8,2557.0,1.05821626]
[1647017450543,1.45809897,2557.8,2557.4,0.00419141]
[1647017450743,0.05375353,2557.7,2557.4,0.00419141]
[1647017451342,0.05375353,2557.7,2557.2,0.00609306]
[1647017451544,1.13067474,2557.3,2557.2,0.00609306]
[1647017455193,1.17746057,2557.3,2557.2,0.00609306]
[1647017455594,1.17746057,2557.3,2557.1,0.00373516]
[1647017456200,1.17746057,2557.3,2557.0,0.05090224]
[1647017456394,1.17746057,2557.3,2557.1,0.00373524]
[1647017457393,1.17746057,2557.3,2557.0,0.05090224]
[1647017458559,3.5,2557.2,2557.0,0.05090224]
[1647017458865,0.04352354,2557.1,2557.0,0.05090224]
[1647017459058,0.04352354,2557.1,2557.0,0.00610224]
[1647017460063,3.5,2557.1,2557.0,0.00610224]
[1647017460661,12.21,2557.2,2557.0,0.00610224]
[1647017460963,15.71,2557.2,2556.7,0.25610224]
[1647017461166,15.71,2557.2,2556.7,0.00610224]
[1647017461167,1.09777792,2556.8,2556.7,0.00610224]
[1647017462603,2.463934,2557.2,2556.7,0.00610224]
[1647017462804,1.277734,2557.2,2556.7,0.00610224]
[1647017463404,13.187734,2557.2,2556.7,0.00610224]
[1647017463606,1.08462768,2557.1,2556.8,0.00418742]
[1647017464403,1.08462768,2557.1,2556.8,0.98193742]
[1647017464404,16.49462768,2557.1,2556.8,0.98193742]
[1647017464610,16.49462768,2557.1,2556.7,0.00610224]
[1647017464611,11.91,2556.9,2556.7,0.00610224]
[1647017464804,11.91,2556.8,2556.7,0.00610224]
[1647017465003,12.671,2556.8,2556.7,0.00610224]
[1647017465204,0.761,2556.8,2556.7,0.00610224]
[1647017465657,0.761,2556.8,2556.4,0.99462217]
[1647017466060,1.11787244,2556.6,2556.4,1.29462217]
[1647017466256,1.41787244,2556.6,2556.4,1.27787]
[1647017466461,1.41787244,2556.6,2556.4,0.3]
[1647017466657,1.41787244,2556.6,2556.3,0.00614158]
[1647017467161,1.41787244,2556.6,2556.4,0.00418815]
[1647017467760,1.36787244,2556.6,2556.4,0.00418815]
[1647017467959,0.25,2556.6,2556.4,0.00418815]
[1647017468163,5.48833901,2557.2,2556.4,0.00418815]
[1647017468360,0.03263901,2557.2,2556.3,0.00614158]
[1647017468565,0.03263901,2557.2,2556.4,0.00418815]
[1647017469224,12.24263901,2557.2,2556.4,0.00418815]
[1647017469424,1.00268745,2556.6,2556.4,0.00418815]
[1647017469828,1.00268745,2556.6,2556.3,0.02100999]
[1647017470027,1.00268745,2556.6,2556.4,0.97787]
[1647017470226,1.00268745,2556.6,2556.4,1.27787]
[1647017470429,0.04077239,2556.8,2556.4,1.27787]
[1647017470628,1.01865239,2556.8,2556.4,0.3]
[1647017470827,0.05428589,2556.7,2556.5,0.00617175]